bitfinex/quotes_BTCUSD_20220226
["timestamp","ask_amount","ask_price","bid_price","bid_amount"]
[1645911631083,0.04,39473.0,39470.0,0.377539]
[1645911631285,0.04035764,39473.0,39470.0,0.377539]
[1645911632243,0.04,39473.0,39470.0,0.377539]
[1645911632643,0.04035764,39473.0,39470.0,0.377539]
[1645911633540,0.04,39473.0,39470.0,0.377539]
[1645911633741,0.04035762,39473.0,39470.0,0.377539]
[1645911634740,0.04,39473.0,39470.0,0.377539]
[1645911634940,0.04035762,39473.0,39470.0,0.377539]
[1645911635979,0.04,39473.0,39470.0,0.377539]
[1645911636183,0.04035762,39473.0,39470.0,0.377539]
[1645911637180,0.04,39473.0,39470.0,0.377539]
[1645911637380,0.04035763,39473.0,39470.0,0.377539]
[1645911637788,0.04035763,39473.0,39468.0,0.377539]
[1645911637789,0.04155232,39469.0,39468.0,0.377539]
[1645911640037,0.04155232,39469.0,39468.0,0.277539]
[1645911644189,0.12155232,39469.0,39468.0,0.277539]
[1645911644589,0.12126145,39469.0,39468.0,0.277539]
[1645911647537,0.12126145,39469.0,39468.0,0.59896882]
[1645911647734,0.12126145,39469.0,39468.0,0.277539]
[1645911648335,0.12126145,39469.0,39468.0,0.59896882]
[1645911648736,0.12126145,39469.0,39468.0,0.277539]
[1645911657333,0.12126145,39469.0,39468.0,0.59896882]
[1645911657534,0.12126145,39469.0,39468.0,0.277539]
[1645911664235,0.12126145,39469.0,39468.0,0.59896882]
[1645911664437,0.12126145,39469.0,39468.0,0.277539]
[1645911665437,0.12126145,39469.0,39468.0,0.59896882]
[1645911665638,0.12126145,39469.0,39468.0,0.277539]
[1645911666382,0.12126145,39469.0,39468.0,0.59896882]
[1645911666983,0.12126145,39469.0,39468.0,0.277539]
[1645911667385,0.12126145,39469.0,39468.0,0.59896882]
[1645911667982,0.12126145,39469.0,39468.0,0.277539]
[1645911669537,0.12126145,39469.0,39468.0,0.59896882]
[1645911669938,0.12126145,39469.0,39468.0,0.69896882]
[1645911671542,1.86266403,39469.0,39468.0,0.69896882]
[1645911671741,1.83766403,39469.0,39468.0,0.69896882]
[1645911674286,1.83766403,39469.0,39468.0,0.69761506]
[1645911674488,1.83766403,39469.0,39468.0,0.377539]
[1645911675789,1.83766403,39469.0,39468.0,0.327539]
[1645911675991,1.83766403,39469.0,39468.0,0.277539]
[1645911676491,1.83766403,39469.0,39468.0,0.59761506]
[1645911678940,1.83766403,39469.0,39468.0,0.69761506]
[1645911680339,1.83766403,39469.0,39468.0,0.79761506]
[1645911683690,1.83766403,39469.0,39468.0,0.84801506]
[1645911683894,1.83766403,39469.0,39468.0,0.74801506]
[1645911684092,1.83766403,39469.0,39468.0,0.96195388]
[1645911684294,1.83766403,39469.0,39468.0,0.74801506]
[1645911684551,1.83266403,39469.0,39468.0,0.74801506]
[1645911685251,1.83266403,39469.0,39468.0,0.427939]
[1645911685452,1.83266403,39469.0,39468.0,0.377539]
[1645911685650,1.83266403,39469.0,39468.0,0.277539]
[1645911689784,0.09126145,39469.0,39468.0,0.277539]
[1645911690183,0.09126145,39469.0,39468.0,0.59761506]
[1645911692142,0.09126145,39469.0,39468.0,0.64761506]
[1645911692143,0.06571527,39469.0,39468.0,0.64761506]
[1645911692346,0.06571527,39469.0,39468.0,0.69761506]
[1645911694743,0.06571527,39469.0,39468.0,0.277539]
[1645911695337,0.00035887,39470.0,39468.0,0.277539]
[1645911695993,0.06571527,39472.0,39468.0,0.277539]
[1645911696193,0.00035887,39471.0,39468.0,0.277539]
[1645911697197,0.06571527,39472.0,39468.0,0.277539]
[1645911697599,0.00035887,39471.0,39468.0,0.277539]
[1645911697996,0.00035887,39471.0,39468.0,0.272539]
[1645911698395,0.06571527,39472.0,39468.0,0.272539]
[1645911698595,0.00035887,39471.0,39468.0,0.272539]
[1645911699197,0.00035887,39471.0,39467.0,0.56917717]
[1645911699198,0.00035887,39471.0,39470.0,0.377539]
[1645911699648,0.06571527,39472.0,39470.0,0.377539]
[1645911699852,0.06607414,39472.0,39470.0,0.377539]
[1645911700249,0.06607414,39472.0,39470.0,0.57682168]
[1645911700847,0.06571527,39472.0,39470.0,0.57682168]
[1645911701048,0.06571527,39472.0,39471.0,0.31862216]
[1645911701245,0.06571527,39472.0,39471.0,0.377506]
[1645911710791,0.32110663,39476.0,39474.0,0.377506]
[1645911713389,0.31768174,39476.0,39474.0,0.377506]
[1645911713787,0.01510793,39477.0,39474.0,0.377506]
[1645911713987,0.015,39477.0,39475.0,0.377506]
[1645911714187,0.01535887,39477.0,39474.0,0.377506]
[1645911715141,0.015,39477.0,39474.0,0.377506]
[1645911715948,0.377506,39476.0,39473.0,0.21107166]
[1645911716143,0.015,39477.0,39473.0,0.21107166]
[1645911716144,0.7521682,39474.0,39473.0,0.21107166]
[1645911716341,0.54213076,39474.0,39473.0,0.21107166]
[1645911716540,0.16462476,39474.0,39473.0,0.21107166]
[1645911716742,0.21462476,39474.0,39473.0,0.21107166]
[1645911716942,0.42047553,39474.0,39473.0,0.21107166]
[1645911717140,0.43059553,39474.0,39473.0,0.21107166]
[1645911717342,0.063391,39473.0,39469.0,0.00032845]
[1645911717544,0.1,39470.0,39469.0,0.00032845]
[1645911717743,0.1504,39470.0,39469.0,0.00026845]
[1645911718148,0.52510073,39470.0,39469.0,0.00026845]
[1645911718388,0.1504,39470.0,39469.0,0.00026845]
[1645911719388,0.0504,39470.0,39469.0,0.00026845]
[1645911721393,0.3714862,39470.0,39469.0,0.00026845]
[1645911723039,0.0504,39470.0,39469.0,0.00026845]
[1645911724139,0.3714862,39470.0,39469.0,0.00026845]
[1645911724341,0.0504,39470.0,39469.0,0.00026845]
[1645911725147,0.3210862,39472.0,39470.0,0.377506]
[1645911725348,0.16109937,39474.0,39470.0,0.377506]
[1645911725544,0.32144387,39475.0,39470.0,0.377506]
[1645911725545,0.00035767,39475.0,39471.0,0.31702924]
[1645911725792,0.00035767,39475.0,39472.0,0.377506]
[1645911726092,0.015,39476.0,39470.0,0.377506]
[1645911726297,0.0003577,39475.0,39471.0,0.31702924]
[1645911726496,0.0003577,39475.0,39470.0,0.377506]
[1645911727093,0.3210862,39478.0,39470.0,0.377506]
[1645911727293,0.3210862,39478.0,39472.0,0.377506]
[1645911727497,0.0003577,39475.0,39470.0,0.377506]
[1645911727893,0.0003577,39475.0,39472.0,0.377506]
[1645911728096,0.0003577,39475.0,39470.0,0.377506]
[1645911728295,0.3210862,39478.0,39470.0,0.377506]
[1645911728495,0.015,39479.0,39470.0,0.377506]
[1645911728496,0.3210862,39477.0,39470.0,0.377506]
[1645911728695,0.0003577,39475.0,39470.0,0.377506]
[1645911728896,0.26751139,39474.0,39470.0,0.377506]
[1645911729110,0.3210862,39477.0,39472.0,0.377506]
[1645911729306,0.015,39479.0,39474.0,0.377506]
[1645911729555,0.015,39479.0,39476.0,0.377506]
[1645911729756,0.015,39479.0,39478.0,0.377506]
[1645911730050,0.015,39479.0,39478.0,0.99374403]
[1645911730249,0.00025,39490.0,39480.0,0.02535]
[1645911730451,0.00025,39490.0,39482.0,0.06333471]
[1645911730650,0.00025,39490.0,39483.0,0.75505524]
[1645911730850,0.00025,39490.0,39483.0,1.61487524]
[1645911731050,0.00010773,39488.0,39483.0,1.61487524]
[1645911732149,0.00025,39490.0,39483.0,1.61487524]
[1645911732350,0.00025,39490.0,39483.0,2.38947524]
[1645911732351,0.00010773,39487.0,39483.0,2.38947524]
[1645911732954,0.00010773,39487.0,39485.0,0.1]
[1645911733150,0.00025,39490.0,39485.0,0.1]
[1645911733151,0.00025,39490.0,39486.0,1.5144655]
[1645911733396,0.0003577,39487.0,39486.0,1.5644655]
[1645911734297,0.00025,39490.0,39486.0,1.5644655]
[1645911734896,0.00038471,39488.0,39486.0,1.5644655]
[1645911735093,0.00038471,39488.0,39487.0,0.377506]
[1645911735397,0.00038471,39488.0,39487.0,0.427906]
[1645911735597,0.00025,39490.0,39487.0,0.427906]
[1645911735794,0.00038471,39489.0,39488.0,0.377506]
[1645911735994,0.00038471,39489.0,39488.0,0.427906]
[1645911736794,0.00025,39490.0,39488.0,0.427906]
[1645911737051,0.00063471,39490.0,39488.0,0.427906]
[1645911737251,0.01063471,39495.0,39493.0,0.17110791]
[1645911737446,0.01063471,39495.0,39494.0,0.377506]
[1645911737847,0.00903471,39499.0,39494.0,0.377506]
[1645911738546,0.00903471,39499.0,39489.0,0.3176795]
[1645911738845,0.2113421,39498.0,39491.0,0.21646469]
[1645911739046,0.2113421,39498.0,39492.0,0.377506]
[1645911739445,0.2104319,39498.0,39492.0,0.377506]
[1645911741592,0.2104319,39498.0,39492.0,0.37720776]
[1645911741795,0.00041488,39497.0,39492.0,0.37720776]
[1645911741993,0.00041488,39497.0,39492.0,0.37675496]
[1645911742794,0.20496122,39499.0,39492.0,0.37675496]
[1645911742995,0.00041488,39496.0,39492.0,0.37675496]
[1645911743693,0.00041488,39496.0,39488.0,0.0504]
[1645911743895,0.30496122,39499.0,39489.0,0.377401]
[1645911744093,0.30496122,39499.0,39487.0,0.3176795]
[1645911744294,0.00041488,39496.0,39488.0,0.377401]
[1645911744543,1.99615414,39491.0,39489.0,0.23483986]
[1645911744747,1.99615414,39491.0,39490.0,0.377401]
[1645911747249,1.99615414,39491.0,39486.0,0.75976]
[1645911747448,1.99615414,39491.0,39487.0,0.377401]
[1645911748303,1.99615414,39491.0,39486.0,0.75976]
[1645911748503,1.99615414,39491.0,39487.0,0.377401]
[1645911748708,0.16532696,39490.0,39487.0,0.377401]
[1645911750807,1.99615414,39491.0,39487.0,0.377401]
[1645911751509,1.99615414,39491.0,39488.0,0.20895175]
[1645911751713,1.99615414,39491.0,39489.0,0.377401]
[1645911756997,0.16873981,39490.0,39489.0,0.377401]
[1645911757198,1.99615414,39491.0,39489.0,0.377401]
[1645911763601,1.99615414,39491.0,39489.0,0.37733703]
[1645911765002,0.00041488,39492.0,39489.0,0.37733703]
[1645911765608,0.2243048,39493.0,39489.0,0.37733703]
[1645911765804,0.00012462,39492.0,39489.0,0.37733703]
[1645911766704,0.2243048,39493.0,39489.0,0.37733703]
[1645911767145,0.00012462,39492.0,39489.0,0.37733703]
[1645911767938,0.2243048,39493.0,39489.0,0.37733703]
[1645911768143,0.00041488,39492.0,39489.0,0.37733703]
[1645911769242,0.2243048,39493.0,39489.0,0.37733703]
[1645911769448,0.00041488,39492.0,39489.0,0.37733703]
[1645911770441,0.015,39498.0,39489.0,0.37733703]
[1645911770660,0.00041488,39492.0,39487.0,0.377404]
[1645911771492,0.21724864,39493.0,39487.0,0.377404]
[1645911771894,0.00041487,39492.0,39487.0,0.377404]
[1645911772795,0.21724864,39493.0,39487.0,0.377404]
[1645911773894,0.00541488,39498.0,39486.0,0.95126]
[1645911774094,0.16506822,39495.0,39487.0,0.377404]
[1645911775167,0.34124742,39495.0,39487.0,0.377404]
[1645911775371,0.00041383,39494.0,39487.0,0.377404]
[1645911775870,0.00041383,39494.0,39487.0,0.6940835]
[1645911776069,0.00041383,39494.0,39487.0,0.377404]
[1645911776468,0.34124742,39495.0,39487.0,0.377404]
[1645911776668,0.00041383,39494.0,39487.0,0.377404]
[1645911777470,0.34124742,39495.0,39487.0,0.377404]
[1645911777870,0.00041383,39494.0,39487.0,0.377404]
[1645911778692,1.71869504,39488.0,39487.0,0.377404]
[1645911778896,0.37446761,39494.0,39489.0,0.57087623]
[1645911779095,0.37488144,39494.0,39489.0,0.57087623]
[1645911779894,0.37446761,39494.0,39490.0,0.377404]
[1645911780294,0.37488145,39494.0,39490.0,0.377404]
[1645911781195,0.37446761,39494.0,39490.0,0.377404]
[1645911781395,0.37488145,39494.0,39490.0,0.377404]
[1645911782451,0.37446761,39494.0,39490.0,0.377404]
[1645911782646,0.37488145,39494.0,39490.0,0.377404]
[1645911782851,0.37488145,39494.0,39489.0,0.57087623]
[1645911783447,0.55536589,39494.0,39489.0,0.57087623]
[1645911783652,0.55495205,39494.0,39489.0,0.57087623]
[1645911783947,0.37488145,39494.0,39489.0,0.57087623]
[1645911784349,0.37488145,39494.0,39490.0,0.377404]
[1645911784752,0.1761792,39495.0,39491.0,0.377404]
[1645911784753,0.55064681,39495.0,39491.0,0.377404]
[1645911784955,0.55064681,39495.0,39492.0,0.377404]
[1645911784956,0.00041384,39494.0,39492.0,0.377404]
[1645911786002,0.00541488,39498.0,39493.0,0.3659988]
[1645911786201,0.00117179,39498.0,39494.0,0.060197]
[1645911786399,0.00041384,39495.0,39494.0,0.060197]
[1645911786598,0.00041384,39495.0,39494.0,1.1354058]
[1645911786801,0.00041384,39495.0,39494.0,1.1854058]
[1645911786998,0.00041384,39495.0,39494.0,1.4353058]
[1645911787197,0.00403471,39499.0,39494.0,1.4853058]
[1645911787397,0.00403471,39499.0,39498.0,0.586075]
[1645911787596,0.00403471,39499.0,39498.0,1.396005]
[1645911787797,0.00403471,39499.0,39498.0,1.187334]
[1645911787999,0.00403471,39499.0,39498.0,1.136934]
[1645911788198,0.00403471,39499.0,39498.0,0.75953]
[1645911788802,0.20111395,39499.0,39498.0,0.75953]
[1645911789396,0.37756639,39499.0,39498.0,0.75953]
[1645911792647,0.75497039,39499.0,39489.0,0.57087623]
[1645911792950,0.377404,39495.0,39489.0,0.57087623]
[1645911793148,0.0504,39494.0,39489.0,0.57087623]
[1645911793602,0.18994032,39493.0,39489.0,0.57087623]
[1645911793806,0.19310282,39492.0,39489.0,0.57087623]
[1645911794304,0.18994032,39493.0,39489.0,0.57087623]
[1645911796106,0.00035648,39494.0,39489.0,0.57087623]
[1645911796706,0.01012,39496.0,39489.0,0.57087623]
[1645911797142,0.00035648,39494.0,39489.0,0.57087623]
[1645911797944,0.23232713,39495.0,39489.0,0.57087623]
[1645911798343,0.00035648,39494.0,39489.0,0.57087623]
[1645911799146,0.37446761,39498.0,39489.0,0.57087623]
[1645911799343,0.22818821,39496.0,39489.0,0.57087623]
[1645911799545,0.00035456,39494.0,39489.0,0.57087623]
[1645911800343,0.22818821,39496.0,39489.0,0.57087623]
[1645911800644,0.00035456,39494.0,39489.0,0.57087623]
[1645911801696,0.22818821,39496.0,39489.0,0.57087623]
[1645911801896,0.00035456,39494.0,39489.0,0.57087623]
[1645911802792,0.22818821,39496.0,39489.0,0.57087623]
[1645911802993,0.00035486,39494.0,39489.0,0.57087623]
[1645911803997,0.22818821,39496.0,39489.0,0.57087623]
[1645911804201,0.16136607,39494.0,39489.0,0.57087623]
[1645911804544,0.00035486,39494.0,39489.0,0.57087623]
[1645911805145,0.22818821,39496.0,39489.0,0.57087623]
[1645911805647,0.00035486,39494.0,39489.0,0.57087623]
[1645911806347,0.18150462,39495.0,39489.0,0.57087623]
[1645911806646,0.00035481,39494.0,39489.0,0.57087623]
[1645911807245,0.00025803,39494.0,39489.0,0.57087623]
[1645911807647,0.22818821,39496.0,39489.0,0.57087623]
[1645911808294,0.19665324,39495.0,39489.0,0.57087623]
[1645911810191,0.19706641,39495.0,39489.0,0.57087623]
[1645911811192,0.19665324,39495.0,39489.0,0.57087623]
[1645911811391,0.19706641,39495.0,39489.0,0.57087623]
[1645911812244,0.00041317,39495.0,39489.0,0.57087623]
[1645911812448,0.22818821,39496.0,39489.0,0.57087623]
[1645911812642,0.00041317,39495.0,39489.0,0.57087623]
[1645911813644,0.22818821,39496.0,39489.0,0.57087623]
[1645911813943,0.00041317,39495.0,39489.0,0.57087623]
[1645911814144,0.3,39494.0,39483.0,0.00042207]
[1645911814348,0.3,39494.0,39484.0,0.001]
[1645911814349,0.1,39488.0,39484.0,0.001]
[1645911814555,0.60500171,39487.0,39484.0,0.001]
[1645911814751,0.1,39486.0,39484.0,0.001]
[1645911814947,0.7487611,39485.0,39484.0,0.001]
[1645911815146,0.7588811,39485.0,39484.0,0.00090001]
[1645911815347,0.8662577,39485.0,39484.0,0.00090001]
[1645911815546,0.8662577,39485.0,39478.0,0.00062046]
[1645911815547,1.55947223,39485.0,39478.0,0.00062046]
[1645911815801,0.26750613,39480.0,39478.0,0.00062046]
[1645911816003,0.60965901,39479.0,39472.0,0.015]
[1645911816203,0.21509085,39473.0,39472.0,0.015]
[1645911816408,0.18051854,39478.0,39477.0,0.00041309]
[1645911816606,1.7039299,39478.0,39477.0,0.00041309]
[1645911816803,0.0504,39478.0,39477.0,0.00041309]
[1645911817108,0.05157179,39478.0,39477.0,0.00041309]
[1645911818101,0.00117179,39478.0,39477.0,0.00041309]
[1645911818302,0.00417179,39478.0,39477.0,0.00041309]
[1645911818502,0.30174329,39483.0,39477.0,0.00041309]
[1645911818702,0.00012507,39481.0,39477.0,0.00041309]
[1645911819303,0.00012507,39481.0,39478.0,0.17095864]
[1645911819546,0.30174329,39483.0,39478.0,0.17095864]
[1645911819946,0.00041691,39481.0,39478.0,0.17095864]
[1645911820846,0.003,39483.0,39478.0,0.17095864]
[1645911821047,0.00041691,39481.0,39478.0,0.17050764]
[1645911821754,0.00041691,39481.0,39477.0,0.00041309]
[1645911822152,0.2674715,39485.0,39477.0,0.00041309]
[1645911822354,0.00141691,39481.0,39477.0,0.00041309]
[1645911822651,0.16846679,39481.0,39477.0,0.00041309]
[1645911823056,0.00141691,39481.0,39477.0,0.00041309]
[1645911823303,0.001,39481.0,39477.0,0.00041309]
[1645911823795,0.00141691,39481.0,39477.0,0.00041309]
[1645911823995,0.21568451,39480.0,39477.0,0.00041309]
[1645911824396,0.001,39481.0,39477.0,0.00041309]
[1645911824796,0.0014169,39481.0,39477.0,0.00041309]
[1645911825598,0.001,39481.0,39477.0,0.00041309]
[1645911825799,0.00141691,39481.0,39477.0,0.00041309]
[1645911826398,0.00241691,39481.0,39477.0,0.00041309]
[1645911826802,0.002,39481.0,39477.0,0.00041309]
[1645911827040,0.00241691,39481.0,39477.0,0.00041309]
[1645911827547,0.00141691,39481.0,39477.0,0.00041309]
[1645911827741,0.00041691,39481.0,39477.0,0.00041309]
[1645911828140,0.19369981,39482.0,39477.0,0.00041309]
[1645911828341,0.00041691,39481.0,39477.0,0.00041309]
[1645911829342,0.015,39482.0,39477.0,0.03893561]
[1645911829543,0.00041691,39481.0,39477.0,0.03893561]
[1645911829942,0.22518487,39481.0,39477.0,0.03893561]
[1645911830343,0.22618487,39481.0,39477.0,0.03893561]
[1645911830547,0.22576796,39481.0,39477.0,0.00041309]
[1645911830795,0.22618487,39481.0,39477.0,0.00041309]
[1645911831199,0.377404,39480.0,39477.0,0.00041309]
[1645911831400,0.68096651,39481.0,39477.0,0.00041309]
[1645911831596,0.21381934,39480.0,39477.0,0.00041309]
[1645911832396,0.21681934,39480.0,39477.0,0.00041309]
[1645911832801,0.377404,39479.0,39477.0,0.00041309]
[1645911833095,0.21681934,39480.0,39477.0,0.00041309]
[1645911833096,0.17427834,39480.0,39477.0,0.00041309]
[1645911833296,0.377404,39479.0,39477.0,0.00041309]
[1645911833494,0.320404,39479.0,39477.0,0.00041309]
[1645911834300,0.322404,39479.0,39477.0,0.00041309]
[1645911835543,0.320404,39479.0,39477.0,0.00041309]
[1645911836342,0.322404,39479.0,39477.0,0.00041309]
[1645911839592,0.320404,39479.0,39477.0,0.00041309]
[1645911840292,0.322404,39479.0,39477.0,0.00041309]
[1645911841094,0.32154198,39478.0,39477.0,0.00041309]
[1645911841301,0.74934598,39478.0,39477.0,0.00041309]
[1645911841694,0.96317011,39478.0,39477.0,0.00041309]
[1645911841892,0.74934598,39478.0,39477.0,0.00041309]
[1645911842349,0.92162432,39478.0,39477.0,0.00041309]
[1645911842748,0.98501132,39478.0,39477.0,0.00041309]
[1645911843150,1.75961132,39478.0,39477.0,0.00041309]
[1645911843748,1.75861132,39478.0,39477.0,0.00041309]
[1645911843947,1.97242759,39478.0,39477.0,0.00041309]
[1645911844347,1.19882759,39478.0,39477.0,0.00041309]
[1645911844749,0.98501132,39478.0,39477.0,0.00041309]
[1645911844949,0.49987581,39478.0,39477.0,0.00041309]
[1645911845154,0.001,39478.0,39477.0,0.00041309]
[1645911845551,0.05,39479.0,39477.0,0.00041309]
[1645911845800,0.69901498,39478.0,39477.0,0.00041309]
[1645911846197,0.91282545,39478.0,39477.0,0.00041309]
[1645911846399,0.53535245,39478.0,39477.0,0.00041309]
[1645911846996,0.91282545,39478.0,39477.0,0.00041309]
[1645911847599,0.53535245,39478.0,39477.0,0.00041309]
[1645911847799,0.91282545,39478.0,39477.0,0.00041309]
[1645911847999,0.53535245,39478.0,39477.0,0.00041309]
[1645911848202,0.91282545,39478.0,39477.0,0.00041309]
[1645911849002,0.32154198,39478.0,39477.0,0.00041309]
[1645911849201,0.87029332,39478.0,39477.0,0.00041309]
[1645911849403,1.64489332,39478.0,39477.0,0.00041309]
[1645911849650,0.69901498,39478.0,39477.0,0.00041309]
[1645911849946,0.87029332,39478.0,39477.0,0.00041309]
[1645911850148,0.91283039,39478.0,39477.0,0.00041309]
[1645911850446,0.87029332,39478.0,39477.0,0.00041309]
[1645911850646,1.64489332,39478.0,39477.0,0.00041309]
[1645911850847,0.87029332,39478.0,39477.0,0.00041309]
[1645911852448,0.87229332,39478.0,39477.0,0.00041309]
[1645911853702,0.73113799,39478.0,39477.0,0.00041309]
[1645911854102,0.55985965,39478.0,39477.0,0.00041309]
[1645911854500,0.56185965,39478.0,39477.0,0.00041309]
[1645911854901,0.82913383,39478.0,39477.0,0.00041309]
[1645911855301,1.00041217,39478.0,39477.0,0.00041309]
[1645911855703,0.99841217,39478.0,39477.0,0.00041309]
[1645911856405,1.00041217,39478.0,39477.0,0.00041309]
[1645911856603,0.84413383,39478.0,39477.0,0.00041309]
[1645911856804,1.01541217,39478.0,39477.0,0.00041309]
[1645911857050,0.46666083,39478.0,39477.0,0.00041309]
[1645911857253,0.18827834,39478.0,39477.0,0.00041309]
[1645911857459,0.394473,39478.0,39477.0,0.00041309]
[1645911857653,0.392473,39478.0,39477.0,0.00041309]
[1645911858054,0.6598931,39478.0,39477.0,0.00041309]
[1645911858253,0.392473,39478.0,39477.0,0.00041309]
[1645911858455,0.28446357,39478.0,39477.0,0.00041309]
[1645911859255,0.394473,39478.0,39477.0,0.00041309]
[1645911859756,0.015,39478.0,39477.0,0.00041309]
[1645911860559,0.28248535,39478.0,39477.0,0.00041309]
[1645911860797,0.28248535,39478.0,39470.0,0.18918336]
[1645911860996,0.21399623,39475.0,39471.0,0.377473]
[1645911861201,0.21399623,39476.0,39471.0,0.377473]
[1645911861396,0.21399623,39476.0,39470.0,0.18918336]
[1645911861602,0.21399623,39475.0,39471.0,0.377473]
[1645911861795,0.21399623,39475.0,39470.0,0.18918336]
[1645911862696,2.09709715,39474.0,39470.0,0.18918336]
[1645911864299,2.09709715,39474.0,39470.0,0.18963226]
[1645911865348,2.09709715,39474.0,39470.0,0.18918336]
[1645911865550,2.09709715,39474.0,39470.0,0.18963226]
[1645911865749,2.30972809,39474.0,39470.0,0.18963226]
[1645911865950,0.21263094,39474.0,39470.0,0.18963226]
[1645911866550,0.21263094,39474.0,39469.0,0.00026845]
[1645911866753,0.21263094,39474.0,39470.0,0.0004489]
[1645911867550,0.21399623,39475.0,39470.0,0.0004489]
[1645911867750,0.21399623,39475.0,39469.0,0.00026845]
[1645911867949,0.21399623,39475.0,39470.0,0.0004489]
[1645911868402,0.21399623,39474.0,39470.0,0.0004489]
[1645911868603,0.42692908,39474.0,39470.0,0.0004489]
[1645911868806,0.21399623,39474.0,39469.0,0.00026845]
[1645911869002,0.21399623,39474.0,39470.0,0.0004489]
[1645911870001,0.21399623,39474.0,39469.0,0.00026845]
[1645911870404,0.21399623,39474.0,39470.0,0.0004489]
[1645911871002,0.21399623,39474.0,39470.0,0.3779219]
[1645911871203,0.21399623,39474.0,39470.0,0.377473]
[1645911871406,0.21399623,39474.0,39470.0,0.3779219]
[1645911872253,0.21399623,39474.0,39470.0,0.0004489]
[1645911872449,0.21399623,39474.0,39469.0,0.00026845]
[1645911872647,0.21399623,39474.0,39470.0,0.3779219]
[1645911872846,0.21399623,39474.0,39470.0,0.0004489]
[1645911873646,0.21399623,39474.0,39469.0,0.00026845]
[1645911873848,0.21399623,39474.0,39470.0,0.0004489]
[1645911874858,0.21399623,39474.0,39469.0,0.00026845]
[1645911875047,0.21399623,39474.0,39470.0,0.00042858]
[1645911875997,0.21399623,39474.0,39469.0,0.00026845]
[1645911876199,0.21399623,39474.0,39470.0,0.00042858]
[1645911876398,0.21399623,39473.0,39470.0,0.00042858]
[1645911877002,0.21399623,39472.0,39470.0,0.00042858]
[1645911877304,0.21399623,39472.0,39469.0,0.00026845]
[1645911877500,0.21399623,39472.0,39469.0,0.00069703]
[1645911878503,0.21399623,39472.0,39469.0,0.00026845]
[1645911878701,0.44851912,39474.0,39469.0,0.00069704]
[1645911878702,0.21399623,39471.0,39469.0,0.00069704]
[1645911878901,0.21399623,39472.0,39469.0,0.00069704]
[1645911879301,0.18103377,39474.0,39469.0,0.00069704]
[1645911879553,0.21409581,39472.0,39469.0,0.00069704]
[1645911879750,0.2140956,39472.0,39469.0,0.00026845]
[1645911879954,0.21409577,39472.0,39470.0,0.00043154]
[1645911880152,0.18103377,39474.0,39470.0,0.00043154]
[1645911880352,0.21409833,39472.0,39470.0,0.00043154]
[1645911880553,0.21410086,39471.0,39470.0,0.00043154]
[1645911880756,0.18103377,39474.0,39470.0,0.00043154]
[1645911880952,0.21410108,39471.0,39469.0,0.00026845]
[1645911881153,0.18103377,39474.0,39469.0,0.0007]
[1645911881653,0.21410377,39471.0,39469.0,0.0007]
[1645911881854,0.18103377,39474.0,39469.0,0.0007]
[1645911882053,0.21410474,39471.0,39469.0,0.00026845]
[1645911882354,0.21410438,39471.0,39469.0,0.00026845]
[1645911882557,0.18103377,39474.0,39469.0,0.00026845]
[1645911882755,0.26763223,39473.0,39469.0,0.00026845]
[1645911882955,0.21410237,39471.0,39469.0,0.00026845]
[1645911883155,0.26762802,39473.0,39469.0,0.00026845]
[1645911883401,0.21410231,39471.0,39469.0,0.00026845]
[1645911883606,0.2676284,39473.0,39469.0,0.00026845]
[1645911883802,0.21410042,39472.0,39469.0,0.00026845]
[1645911884001,0.32072901,39476.0,39469.0,0.00026845]
[1645911884202,0.49203652,39476.0,39471.0,0.18836713]
[1645911884403,0.21410052,39472.0,39471.0,0.18836713]
[1645911884802,0.21410052,39472.0,39469.0,0.00026845]
[1645911885205,0.21410052,39471.0,39469.0,0.00026845]
[1645911888154,0.21410052,39471.0,39470.0,0.377473]
[1645911888355,0.50703652,39476.0,39469.0,0.37774145]
[1645911888356,0.21410052,39472.0,39469.0,0.37774145]
[1645911889055,0.21410052,39473.0,39469.0,0.37774145]
[1645911889259,0.21410052,39474.0,39469.0,0.37774145]
[1645911889456,0.21410052,39474.0,39469.0,0.59123307]
[1645911889860,0.21410052,39472.0,39469.0,0.37817262]
[1645911890057,0.21410052,39473.0,39469.0,0.37817262]
[1645911890456,0.21410052,39473.0,39469.0,0.37774145]
[1645911890656,0.21410052,39473.0,39469.0,0.3781726]
[1645911891302,0.21410052,39474.0,39469.0,0.3781726]
[1645911891803,0.21410052,39474.0,39469.0,0.37774145]
[1645911891999,0.21410052,39474.0,39470.0,0.00043115]
[1645911892401,0.21410052,39473.0,39470.0,0.00043115]
[1645911892600,0.21410052,39472.0,39470.0,0.00043115]
[1645911893002,0.21410052,39473.0,39469.0,0.37774145]
[1645911893203,0.21410052,39473.0,39469.0,0.3781726]
[1645911894003,0.21410052,39472.0,39469.0,0.3781726]
[1645911894301,0.21410052,39473.0,39469.0,0.3781726]
[1645911894754,0.21410052,39473.0,39470.0,0.377473]
[1645911894957,0.21410052,39471.0,39469.0,0.0006996]
[1645911895155,0.89077056,39476.0,39469.0,0.0006996]
[1645911895156,0.21410052,39470.0,39469.0,0.0006996]
[1645911895359,0.21410052,39470.0,39469.0,0.00026845]
[1645911896360,0.21410052,39471.0,39469.0,0.37774145]
[1645911897159,0.21410052,39471.0,39469.0,0.00026845]
[1645911899402,0.49203652,39475.0,39469.0,0.00026845]
[1645911899403,0.21410052,39470.0,39469.0,0.00026845]
[1645911899903,0.58894515,39470.0,39469.0,0.00026845]
[1645911900104,0.70518209,39470.0,39469.0,0.00026845]
[1645911900300,1.55705813,39470.0,39469.0,0.00026845]
[1645911900505,1.55705813,39470.0,39469.0,8.082e-05]
[1645911900506,1.56717813,39470.0,39469.0,8.082e-05]
[1645911900701,0.8866096,39470.0,39469.0,8.082e-05]
[1645911900900,0.80067099,39470.0,39469.0,8.082e-05]
[1645911901301,1.22525484,39470.0,39469.0,8.082e-05]
[1645911902163,0.79491749,39470.0,39469.0,8.082e-05]
[1645911902363,1.54657434,39470.0,39469.0,8.082e-05]
[1645911902958,1.16910134,39470.0,39469.0,8.082e-05]
[1645911903163,1.54657434,39470.0,39469.0,8.082e-05]
[1645911903559,1.53645434,39470.0,39469.0,8.082e-05]
[1645911904159,1.20898134,39470.0,39469.0,8.082e-05]
[1645911904361,1.21910134,39470.0,39469.0,8.082e-05]
[1645911904558,1.21967956,39470.0,39469.0,8.082e-05]
[1645911905803,1.22239049,39470.0,39469.0,8.082e-05]
[1645911905999,0.83479749,39470.0,39469.0,8.082e-05]
[1645911906209,2.99277959,39470.0,39469.0,8.082e-05]
[1645911906404,3.35707357,39470.0,39469.0,8.082e-05]
[1645911906601,3.57458862,39470.0,39469.0,8.082e-05]
[1645911906802,3.58958862,39470.0,39469.0,8.082e-05]
[1645911907002,3.58958862,39470.0,39469.0,8.2e-07]